Cogmind - Beta 13 @@@ ROGUE MODE // 2024.03.12 @ 23:19:33 Player: dur Result: Destroyed by as-43538 with Assembled Heavy Rifle Performance ------------- Evolutions (0) 0 Regions Visited (2) 400 Robots Destroyed (1) 5 Value Destroyed (16) 16 Prototype IDs (0) 0 Alien Tech Used (0) 0 Bonus (60) 60 TOTAL SCORE: 481 Bonus ------- Follower Combat Kills 60 Cogmind --------- Core Integrity 0/250 Matter 152/300 Energy 91/100 System Corruption 4% Temperature Cool (40) Movement Core (50) Location -10/Mines Parts ------- > --- POWER (1) -------- (None) > --- PROPULSION (2) --- (None) > --- UTILITY (2) ------ Core Shielding > --- WEAPON (2) ------- (None) > --- INVENTORY (5) ---- (None) Peak State ------------ > --- POWER ------------ Backup Power I > --- PROPULSION ------- Compact Wheel Backup Propulsion I > --- UTILITY ---------- Core Shielding Core Shielding > --- WEAPON ----------- Beam Cannon Beam Cannon > --- INVENTORY -------- (None) [Rating: 7] Favorites ----------- Power Backup Power I Engine Backup Power I Propulsion Compact Wheel Wheel Compact Wheel Hover Unit Backup Propulsion I Utility Core Shielding Protection Core Shielding Weapon Beam Cannon Energy Cannon Beam Cannon Build | -11 -10 -10 ------- Run | Yrd Mat Min Slots Evolved . | . . . Power . | . . . Propulsion . | . . . Utility . | . . . Weapon . | . . . Parts Attached 5 | . 5 . Power . | . . . Engine . | . . . Core . | . . . Reactor . | . . . Propulsion 1 | . 1 . Treads . | . . . Leg . | . . . Wheel 1 | . 1 . Hover . | . . . Flight . | . . . Utility 2 | . 2 . Device . | . . . Storage . | . . . Processor . | . . . Hackware . | . . . Protection 2 | . 2 . Artifact . | . . . Weapon 2 | . 2 . Energy Gun . | . . . Energy Cannon 2 | . 2 . Ballistic Gun . | . . . Ballistic Cannon . | . . . Launcher . | . . . Special Weapon . | . . . Impact Weapon . | . . . Slashing Weapon . | . . . Piercing Weapon . | . . . Special Melee Weapon . | . . . Unidentified Prototypes . | . . . Parts Lost 6 | . . 6 Power 1 | . . 1 Propulsion 2 | . . 2 Utility 1 | . . 1 Weapon 2 | . . 2 Highest Loss Streak 6 | . . 6 To Critical Strikes . | . . . Average Slot Usage (%) 79 | . 54 97 Engine 8 | . 1 13 Wheel 10 | . 5 13 Hover 7 | . 1 12 Protection 26 | . 23 28 Energy Cannon 25 | . 21 28 Naked Turns 35 | . 35 . Heaviest Build 9 | . 9 9 Greatest Support 16 | 3 16 16 Greatest Overweight (x) 2 | . 2 2 Average Overweight (x) . | . . . Largest Inventory Capacity 5 | 5 5 5 Average Capacity 5 | 5 5 5 Most Carried 2 | . 2 . Average Carried . | . . . Final Capacity 5 | 5 5 5 Final Carried . | . . . Class Distribution -------------------- 100% | Mutant Dominant Class ---------------- Mutant | -10/Materials Mutant | -10/Mines Resources | -11 -10 -10 ----------- Run | Yrd Mat Min Matter Collected 69 | . 26 43 Remotely . | . . . Salvage Created 46 | . 26 20 Parts 1 | . 1 . Haulers Intercepted . | . . . Recyclers Shooed . | . . . Parts Field Recycled . | . . . Retrieved Matter . | . . . Parts Self-Destructed . | . . . Prevented . | . . . Kills | -11 -10 -10 ------- Run | Yrd Mat Min Combat Hostiles Destroyed 1 | . . 1 Cannons 1 | . . 1 Classes Destroyed 2 | . 1 1 Watcher 1 | . 1 . Assembled 1 | . . 1 Best Kill Streak 1 | . 1 1 Combat Bots Only 1 | . . 1 Max Kills in Single Turn 1 | . 1 1 Gunslinging . | . . . Exploded . | . . . Melee . | . . . Uniques/NPCs Destroyed . | . . . Combat | -11 -10 -10 -------- Run | Yrd Mat Min Hostile Shots Fired 46 | . . 46 Missed 11 | . . 11 Damage Taken 621 | 6 . 615 Core 261 | 6 . 255 Absorbed by Shields . | . . . Redirected to Shielding 55 | . . 55 Core Remaining (%) 97 | 97 . . Volleys Fired 5 | . 2 3 Largest 2 | . 2 2 Hottest 120 | . 120 120 Shots Fired 8 | . 4 4 Gun . | . . . Cannon 8 | . 4 4 Launcher . | . . . Special . | . . . Kinetic . | . . . Thermal 8 | . 4 4 Explosive . | . . . Electromagnetic . | . . . Robot Hit Streak 2 | . 1 2 Robot Miss Streak 2 | . 2 1 Penetration Max . | . . . Secondary Targets . | . . . Shots Hit Robots 3 | . 1 2 Core Hits 4 | 1 1 2 Critical Kills . | . . . Critical Parts Destroyed . | . . . Critical Strikes . | . . . Melee Attacks . | . . . Impact . | . . . Slashing . | . . . Piercing . | . . . Sneak Attacks . | . . . Combat Hostiles . | . . . Follow-up Attacks . | . . . Damage Inflicted 81 | 12 17 52 Guns . | . . . Cannons 69 | . 17 52 Explosions . | . . . Melee . | . . . Ramming 12 | 12 . . Kinetic . | . . . Thermal 69 | . 17 52 Explosive . | . . . Electromagnetic . | . . . Impact . | . . . Slashing . | . . . Piercing . | . . . Highest Corruption 4 | . . 4 Average Corruption 3 | . . 3 Corruption Purged . | . . . Corruption Blocked . | . . . Overload Shots . | . . . Overflow Damage . | . . . Projectiles . | . . . Explosions . | . . . Melee . | . . . Knockbacks . | . . . Impact . | . . . Kinetic . | . . . Secondary . | . . . Self-Inflicted Damage 6 | 6 . . Shots . | . . . Rammed 1 | 1 . . Targets Rammed 1 | 1 . . Kicked . | . . . Crushed . | . . . Highest Temperature 90 | . 90 55 Average Temperature 43 | . 48 37 Received Heat Transfer . | . . . Siege Activations . | . . . Robots Corrupted . | . . . Combat Hostiles . | . . . Parts Fried . | . . . Impact Corruptions . | . . . Robots Melted . | . . . Combat Hostiles . | . . . Parts Melted . | . . . Heat Transferred 148 | . 37 111 Parts Sabotaged . | . . . Parts Stolen . | . . . Parts Stripped . | . . . Power Chain Reactions . | . . . Alert | -11 -10 -10 ------- Run | Yrd Mat Min Peak Influence 84 | . 73 84 Initial 28 | . . 28 Average 52 | . 32 69 Maximum Alert Level . | . . . Low Security (%) 100 | 100 100 100 Level 1 . | . . . Level 2 . | . . . Level 3 . | . . . Level 4 . | . . . Level 5 . | . . . High Security . | . . . Max Security . | . . . Squads Dispatched . | . . . Investigation . | . . . Extermination . | . . . Reinforcement . | . . . Assault . | . . . Garrison . | . . . Intercept . | . . . Searches Triggered . | . . . Construction Impeded . | . . . Haulers Reinforced . | . . . Active Scanning Responses . | . . . Cargo Convoy Interrupts . | . . . Stealth | -11 -10 -10 --------- Run | Yrd Mat Min Distress Signals 1 | . 1 . Communications Jammed . | . . . Distress Signals . | . . . Times Spotted 15 | . 3 12 Peak Tracking Total 20 | . 5 20 Tactical Retreats 1 | . . 1 Traps | -11 -10 -10 ------- Run | Yrd Mat Min Traps Triggered . | . . . Indirectly . | . . . Trap Hack Attempts . | . . . Triggered . | . . . Disarmed . | . . . Reprogrammed . | . . . Reused . | . . . Traps Extracted . | . . . Installed . | . . . Triggered . | . . . Machines | -11 -10 -10 ---------- Run | Yrd Mat Min Machines Disabled . | . . . Max in Single Turn . | . . . Machines Repaired . | . . . Machines Dismantled . | . . . Machines Sabotaged . | . . . Overloaded Fab Kills . | . . . Hacking | -11 -10 -10 --------- Run | Yrd Mat Min Machines Accessed 3 | . 3 . Terminals 1 | . 1 . Fabricators . | . . . Repair Stations 1 | . 1 . Recycling Units 1 | . 1 . Scanalyzers . | . . . Garrison Access . | . . . Total Hacks 7 | . 7 . Successful 3 | . 3 . Failed 4 | . 4 . Catastrophic . | . . . Database Lockouts . | . . . Manual . | . . . Terminals 1 | . 1 . Fabricators . | . . . Repair Stations 5 | . 5 . Recycling Units 1 | . 1 . Scanalyzers . | . . . Garrison Access . | . . . Terminal Hacks 1 | . 1 . Dispatch Records 1 | . 1 . Fabricator Hacks . | . . . Repair Station Hacks 1 | . 1 . Refit 1 | . 1 . Recycling Unit Hacks 1 | . 1 . Report Inventory 1 | . 1 . Scanalyzer . | . . . Garrison Access Hacks . | . . . Unauthorized Hacks . | . . . Terminals . | . . . Fabricators . | . . . Repair Stations . | . . . Recycling Units . | . . . Scanalyzers . | . . . Garrison Access . | . . . Data Cores Recovered . | . . . Used . | . . . Hacking Detections 2 | . 2 . Full Trace Events . | . . . Feedback Events . | . . . Feedback Blocked . | . . . Robot Schematics Acquired . | . . . Robots Built . | . . . Authchips . | . . . Time . | . . . Total Robot Build Rating . | . . . Part Schematics Acquired . | . . . Parts Built . | . . . Authchips . | . . . Time . | . . . Total Part Build Rating . | . . . Parts Repaired . | . . . Time . | . . . Parts Recycled . | . . . Recycled Matter . | . . . Retrieved Matter . | . . . Retrieved Components . | . . . Parts Scanalyzed . | . . . Part Schematics Acquired . | . . . Parts Damaged . | . . . Bothacking | -11 -10 -10 ------------ Run | Yrd Mat Min Used RIF Installer . | . . . Robots Hacked . | . . . Non-combat . | . . . Combat . | . . . Robot Hacks Applied . | . . . Relay Couplers Released . | . . . Fabnet Peak Effective % . | . . . Robots Rewired . | . . . Allies Hacked . | . . . Hacks Repelled . | . . . Allies | -11 -10 -10 -------- Run | Yrd Mat Min Total Allies 2 | . . 2 Largest Group 2 | . . 2 Highest-Rated Group 45 | . . 45 Highest-Rated Ally 31 | . . 31 Total Orders . | . . . Ally Attacks 10 | . . 10 Total Damage 188 | . . 188 Kills 4 | . . 4 Allies Corrupted . | . . . Allies Melted . | . . . Intel | -11 -10 -10 ------- Run | Yrd Mat Min Robot Analysis Total . | . . . Derelict Logs Recovered . | . . . Drone Launches . | . . . Drone Recoveries . | . . . Exploration | -11 -10 -10 ------------- Run | Yrd Mat Min Turns Passed 446 | 11 180 255 Spaces Moved 443 | 19 178 246 Core 131 | 19 108 4 Treads . | . . . Legs . | . . . Wheels 312 | . 70 242 Hover . | . . . Flight . | . . . Fastest Speed 50 | 50 50 100 Average Speed 95 | 50 92 100 Slowest Speed 150 | 50 150 150 Overloaded Moves . | . . . Propulsion Burnouts . | . . . Robots Hopped . | . . . Cave-ins Triggered . | . . . Exploration Rate (%) 30 | 2 33 57 Regions Visited 2 Branch Regions 1 Pre-discovered Areas . | . . . Known Exits Taken . | . . . Unknown Exits Taken 2 | 1 1 . Scrap Searched 1 | . . 1 Spaces Dug . | . . . Terrain Destroyed . | . . . Melee . | . . . Projectile . | . . . AOE . | . . . Terrain Rammed . | . . . Walls Destroyed . | . . . Machines Disabled . | . . . Actions | -11 -10 -10 --------- Run | Yrd Mat Min Total 457 | 19 189 249 Wait . | . . . Move 441 | 18 177 246 Hop . | . . . Pick Up 5 | . 5 . Fast Attach . | . . . Attach 5 | . 5 . Detach . | . . . Swap . | . . . Drop . | . . . Fire 5 | . 2 3 Melee . | . . . Ram 1 | 1 . . Kick . | . . . Crush . | . . . Escape Stasis . | . . . Rewire . | . . . Trap . | . . . Miscellaneous . | . . . Route ------- -11/Scrapyard -10/Materials -10/Mines History --------- Turn | Location | Event 5 | -11/Scrapyard | Discovered new exit (range 13) 12 | -11/Scrapyard | Entered Materials 185 | -10/Materials | Discovered new exit (range 7) 192 | -10/Materials | Entered Mines 314 | -10/Mines | Build established: Mutant 407 | -10/Mines | Assembled infested the area 442 | -10/Mines | Core integrity fell below 50% 446 | -10/Mines | Core integrity fell below 20% 447 | -10/Mines | Destroyed by as-43538 with Assembled Heavy Rifle Last Messages --------------- as-28897 destroyed. as-35349 suffers critical hit (Burn). as-35349 destroyed. KL-SPL(g) destroyed. Backup Propulsion I destroyed. K-01 Serf collects debris. as-39302 sneak attacks. K-01 Serf destroyed. Com. Wheel destroyed. Backup Power I destroyed. System corrupted by crushing effect (+1). System corrupted by crushing effect (+2). Knocked back. Core Shielding destroyed. Beam Cannon destroyed. System corrupted by crushing effect (+1). as-39302 destroyed. Acquired 20 matter. Knocked back. Beam Cannon destroyed. Map ----- +----------------------------------------------------+ | ## #?????????????????????????? | | ### #### ##???????????????????####?? | | ??# #??## ###????????????????# ##? | | ### #???## #####?????####### #? | | #???## ####### ## ??? | | #####???# ## #?????? | | ???????# #??????? | | ???????# ##?????? | | ???????# ## ### ####??? | | ???????###?#####?## ## #??? | | ??????????????????## #### #??? | | ???????????????????## ##??# #??? | | ####????????????????# ##??# #??? | | ##???????????????# #??# ##??? | | #???????????????# #??# ##???? | | ##??#???????????# #??## ##????? | | ## ##??????????# #???## ##?????? | | #??????????# #????####??????? | | ### ##??????????# #?#####????????? | | ??# #####???????????# #?# #????????? | | ??# #???????????????# ### #????????? | | ??# #???????????????# t## #?????????? | | ### ##??????????????# ## ##????????? | | #??????????????# %! ####?????? | | #??????????????# ##????? | | #### #??????????????#### @ #????? | | ???# #?????????????????# #????? | | ???# #?????????????????##aaaa ##????? | | ???# #??????????????????# aa ##?????? | | ???# #??????????????????# a ##??????? | | ???# #########?????????## ###???????? | | ???# #?????### ##?????????? | | ???## ########??????## #??????????? | | ????# #?????????????# #??????????? | | ????# #????????????# ## #?####?????? | | ????# #????????????# #?# ### #?????? | | ##### #???????????# ??# ## #?????? | | #?????????? ???# ## #?????? | | ######???????? ???# #?????? | | #???????????? ????# *#?????? | | #???????????# ?????##### =%#?????? | | #???????????## ???????### = #?????? | | #????????????## ???????## % #?????? | | #??????????????????????# """ ##????? | | #??????????????????????# """ ##???? | | ##?????????????????????# """ ##??? | | ####??????????????????## #??? | | ##??????????????????#### % #??? | | #?????????????????????## ##??? | | #??????????????????????##% ##???? | +----------------------------------------------------+ Best States ------------- Heat Dissipation 25 Energy Generation 9 Energy Capacity 100 Matter Stores 117 Matter Capacity 300 Sight Range 16 Terrain Scan Density 10 Core Shielding 20 Evasion (%) 50 Item Schematics ----------------- None Robot Schematics ------------------ None Fabricated ------------ Nothing Alien Tech Used ----------------- None Achievements -------------- Hunted Challenges ------------ None Game ------ Seed AssembledSurgeChip Manual? 0 Play Time 00:12:19 Cumulative 1.3 hours Start 2024.03.12 @ 23:09:15 End 2024.03.12 @ 23:19:33 Sessions 1 Manual Loads 0 Difficulty Rogue Special Mode None Game No. 7 Rogue 7 Adventurer 0 Explorer 0 Win Type - Total 0 Types 0/0/0/0/0/0/0/0/0 Lore% 0 Gallery% 4 Achievement% 6 Wizard Run 0 Options --------- Layout 0 ASCII 0 Keyboard 0 Movement Arrows Keybinds 0 Fullscreen 1 Font 18/SmallcapsGlow Map View 76x50 Zoom Use 0% Tactical HUD 0 Map Filters NONE Filters NONE Steam 1 RUN: a29cf0ff-fed0-4a8c-b9ed-0cbed4731ef4